bitfinex-derivatives/quotes_ETHF0:USTF0_20210702
["timestamp","ask_amount","ask_price","bid_price","bid_amount"]
[1625243822197,1.0,2109.7,2108.7,42.5742]
[1625243822296,18.22175489,2110.1,2108.7,42.5742]
[1625243822446,16.2721,2110.1,2108.7,44.52756539]
[1625243822846,15.1721,2110.1,2108.7,44.52756539]
[1625243823047,15.1721,2110.1,2108.8,1.95345593]
[1625243823146,15.1721,2110.1,2108.8,5.64215593]
[1625243823447,15.1721,2110.1,2109.0,2.20527]
[1625243823546,2.20527,2109.1,2109.0,2.20527]
[1625243823750,2.20527,2109.1,2108.9,1.95343657]
[1625243823889,2.20527,2109.1,2108.8,5.64216616]
[1625243824253,2.20527,2109.1,2108.8,3.6887]
[1625243824555,2.20527,2109.1,2108.7,1.95354851]
[1625243824656,2.20527,2109.1,2108.6,1.95372426]
[1625243824760,4.78667,2109.1,2108.6,1.95372426]
[1625243825467,4.78667,2109.1,2108.2,1.954034]
[1625243825468,2.20527,2108.3,2108.2,1.954034]
[1625243826072,2.20527,2108.3,2108.2,59.904234]
[1625243826172,2.20527,2108.3,2108.2,1.954034]
[1625243827122,2.20527,2108.3,2108.1,5.83379372]
[1625243827324,2.20527,2108.3,2108.2,57.7659]
[1625243827422,2.20527,2108.3,2108.2,63.37589218]
[1625243828173,2.20527,2108.3,2108.2,60.5847]
[1625243830330,2.20527,2108.3,2108.2,63.37605076]
[1625243830730,2.20527,2108.3,2108.2,60.5847]
[1625243831232,2.20527,2108.3,2108.2,63.37645042]
[1625243833186,2.20527,2108.3,2108.2,2.8188]
[1625243833285,2.20527,2108.3,2108.1,5.83461143]
[1625243833638,2.20527,2108.3,2108.2,45.9953]
[1625243833736,2.20527,2108.3,2108.2,48.78721237]
[1625243834988,2.20527,2108.3,2108.2,49.62491931]
[1625243835787,2.20527,2108.3,2108.2,66.79163331]
[1625243836191,2.20527,2108.5,2108.2,66.79163331]
[1625243836493,2.20527,2108.5,2108.2,63.162014]
[1625243836641,2.20527,2108.5,2108.2,68.162014]
[1625243836991,2.20527,2108.5,2108.3,3.63006796]
[1625243837139,2.20527,2108.5,2108.3,6.81286796]
[1625243837342,2.20527,2108.5,2108.4,17.079724]
[1625243837442,1.95305967,2109.9,2108.4,17.079724]
[1625243837590,1.95305967,2109.9,2109.0,44.7133]
[1625243837690,1.95305967,2109.9,2109.0,47.4156]
[1625243837993,1.95305967,2109.9,2109.0,2.7023]
[1625243839568,4.41054,2109.1,2109.0,2.7023]
[1625243841579,4.41054,2109.1,2108.9,2.20527]
[1625243846492,1.95265175,2109.8,2108.9,2.20527]
[1625243846593,1.95265175,2109.8,2108.9,4.99437]
[1625243846695,1.9535352,2109.7,2108.9,4.99437]
[1625243846997,1.9535352,2109.7,2109.0,17.286686]
[1625243847197,15.1721,2110.1,2109.2,1.95650833]
[1625243847548,17.12722938,2110.1,2109.2,1.95650833]
[1625243847650,17.12722938,2110.1,2110.0,2.20527]
[1625243847948,1.95512938,2110.1,2110.0,2.20527]
[1625243848202,42.65482938,2110.1,2110.0,2.20527]
[1625243848548,1.95512938,2110.1,2110.0,2.20527]
[1625243849949,2.79341803,2110.1,2110.0,2.20527]
[1625243851855,63.17490767,2110.2,2110.0,2.20527]
[1625243852155,7.20530767,2110.2,2110.0,2.20527]
[1625243852255,2.79561704,2110.1,2110.0,2.20527]
[1625243856016,4.41054,2110.2,2110.0,2.20527]
[1625243858374,4.41054,2110.2,2110.0,4.51117]
[1625243859386,4.41054,2110.2,2110.0,2.20527]
[1625243861043,56.84514,2110.2,2110.0,2.20527]
[1625243862299,58.80145074,2110.2,2110.0,2.20527]
[1625243862651,58.80145074,2110.2,2109.3,1.95589792]
[1625243862800,62.26885074,2110.2,2109.3,1.95589792]
[1625243863203,1.95595633,2110.0,2109.2,7.55313989]
[1625243863352,57.1293,2109.4,2109.2,4.759]
[1625243863500,59.884,2109.4,2109.2,4.759]
[1625243863703,62.08927,2109.4,2109.3,2.20527]
[1625243864101,4.95997,2109.4,2109.3,2.20527]
[1625243865713,7.16524,2109.4,2109.3,2.20527]
[1625243869866,4.41054,2109.4,2109.3,4.51137]
[1625243869969,1.39668091,2109.7,2109.3,4.51137]
[1625243870067,2.79380406,2110.0,2109.3,4.51137]
[1625243870068,1.39744578,2110.0,2109.3,5.90882616]
[1625243870168,1.39744578,2110.0,2109.4,57.2031]
[1625243870371,1.39742788,2110.1,2109.4,58.60015892]
[1625243870470,1.39742788,2110.1,2109.4,1.39705892]
[1625243870974,1.39742788,2110.1,2109.4,44.91965892]
[1625243871122,1.3972629,2110.2,2109.5,1.39665078]
[1625243871821,3.6025329,2110.2,2109.9,2.20527]
[1625243871972,3.6025329,2110.2,2109.5,1.39665078]
[1625243873077,2.20527,2110.2,2109.5,1.39665078]
[1625243873481,3.60239017,2110.2,2109.4,1.3969926]
[1625243873780,3.60239017,2110.2,2109.8,2.20527]
[1625243873877,3.60239017,2110.2,2109.4,1.3969926]
[1625243875595,57.98519017,2110.2,2109.4,1.3969926]
[1625243875741,57.98519017,2110.2,2109.6,2.20527]
[1625243876245,3.60239017,2110.2,2109.6,2.20527]
[1625243876946,2.20527,2110.2,2109.6,2.20527]
[1625243877650,46.25927,2110.2,2109.6,2.20527]
[1625243877748,4.41054,2109.7,2109.6,2.20527]
[1625243880609,4.41054,2109.7,2109.6,57.34267]
[1625243880709,1.39665184,2110.4,2109.6,57.34267]
[1625243880810,1.39665184,2110.4,2109.6,60.64707]
[1625243881109,1.39665184,2110.4,2109.6,5.50967]
[1625243881709,43.5931,2110.1,2109.6,5.50967]
[1625243881810,2.20527,2110.2,2110.0,2.20527]
[1625243883762,2.20527,2110.2,2110.1,2.20527]
[1625243884785,2.20527,2110.2,2109.4,1.39452724]
[1625243884884,4.70227,2110.2,2109.4,1.39452724]
[1625243885235,1.39685805,2109.9,2109.0,1.39623528]
[1625243885594,1.39685805,2109.9,2108.9,1.39668469]
[1625243885595,48.2649,2109.1,2108.9,1.39668469]
[1625243885740,50.6067,2109.1,2108.9,1.39668469]
[1625243885838,4.41054,2109.0,2108.9,1.39668469]
[1625243886041,4.41054,2109.0,2108.8,1.95535857]
[1625243886042,4.41054,2109.0,2108.8,1.39686119]
[1625243886493,4.41054,2109.0,2108.7,6.15611982]
[1625243886740,4.41054,2109.0,2108.7,4.759]
[1625243887742,4.41054,2109.0,2108.8,1.39650113]
[1625243887847,4.41054,2109.0,2108.8,4.89000113]
[1625243888050,4.41054,2109.0,2108.9,1.39606993]
[1625243888706,4.41054,2109.0,2108.9,1.95379574]
[1625243888960,79.85016659,2109.9,2108.9,1.95379574]
[1625243889055,78.85016659,2109.9,2108.9,1.95379574]
[1625243889458,78.85016659,2109.9,2109.0,1.39548958]
[1625243889857,4.41054,2109.1,2109.0,4.15872896]
[1625243892968,4.41054,2109.1,2109.0,4.99503149]
[1625243893872,77.4532,2109.9,2109.0,4.99503149]
[1625243894323,77.4532,2109.9,2109.3,1.39454347]
[1625243894673,77.4532,2109.9,2109.2,1.39466311]
[1625243895724,16.91128681,2110.1,2109.2,1.39466311]
[1625243895828,2.20527,2109.3,2109.2,1.39466311]
[1625243897780,2.20527,2109.3,2109.2,1.95199339]
[1625243897878,2.20527,2109.3,2109.2,4.15726339]
[1625243898529,15.5144,2110.1,2109.2,4.15726339]
[1625243898831,15.5144,2110.1,2109.2,4.99263984]
[1625243899031,15.5144,2110.1,2109.4,1.39358157]
[1625243899332,15.5144,2110.1,2109.3,1.3935812]
[1625243899834,16.91132324,2110.1,2109.2,3.59924921]
[1625243899933,4.41054,2109.3,2109.2,3.59924921]
[1625243900884,57.72634,2109.3,2109.2,2.20527]
[1625243901790,57.72634,2109.3,2109.0,3.59989428]
[1625243901791,57.72634,2109.3,2108.9,1.39502185]
[1625243901885,2.20527,2109.0,2108.9,1.39502185]
[1625243902289,2.20527,2109.0,2108.7,6.154839]
[1625243902687,2.20527,2109.0,2108.7,4.759]
[1625243903939,2.20527,2108.8,2108.7,4.759]
[1625243904593,2.20527,2108.8,2108.7,6.15484428]
[1625243904840,2.20527,2108.8,2108.7,4.759]
[1625243905042,2.20527,2108.8,2108.6,1.954182]
[1625243905144,2.20527,2108.8,2108.6,1.39599825]
[1625243905902,2.20527,2108.8,2108.7,1.39595153]
[1625243906208,2.20527,2108.8,2108.6,1.39622831]
[1625243906356,5.05847,2108.8,2108.6,1.39622831]
[1625243906556,5.05847,2108.8,2108.5,1.3965309]
[1625243907457,5.05847,2108.8,2108.6,1.39647083]
[1625243908159,2.20527,2108.8,2108.6,1.39647083]
[1625243908911,2.20527,2108.8,2108.7,1.39560779]
[1625243914126,2.20527,2108.8,2108.5,1.39637058]
[1625243914224,49.6252,2108.7,2108.5,1.39637058]
[1625243914625,52.8279,2108.7,2108.5,1.39637058]
[1625243915078,52.8279,2108.7,2108.4,1.39651329]
[1625243915478,3.2027,2108.7,2108.4,1.39651329]
[1625243915980,2.20527,2108.5,2108.4,1.39651329]
[1625243916482,2.20527,2108.5,2108.4,1.95493286]
[1625243917734,46.67957,2108.5,2108.4,1.95493286]
[1625243917836,46.67957,2108.5,2108.4,1.39653699]
[1625243918434,2.20527,2108.5,2108.4,1.39653699]
[1625243918985,2.20527,2108.5,2108.3,1.39644161]
[1625243919989,2.20527,2108.4,2108.3,1.39644161]
[1625243922011,2.20527,2108.4,2108.3,1.95432404]
[1625243923263,2.20527,2108.4,2108.3,43.15812404]
[1625243924114,2.20527,2108.4,2108.3,43.99463945]
[1625243924917,2.20527,2108.4,2108.3,2.79083945]
[1625243926971,2.20527,2108.4,2108.3,1.95214728]
[1625243931034,2.20527,2108.4,2108.2,8.91474905]
[1625243931834,2.20527,2108.4,2108.3,1.39343355]
[1625243932786,2.20527,2108.4,2108.2,8.91474905]
[1625243932787,2.20527,2108.4,2108.2,8.35805684]
[1625243935090,2.20527,2108.4,2108.2,6.15278684]
[1625243937359,2.20527,2108.4,2108.3,42.5332]
[1625243937511,2.20527,2108.4,2108.3,46.2332]
[1625243938220,2.20527,2108.4,2108.3,49.01587058]
[1625243938722,2.20527,2108.4,2108.3,46.2332]
[1625243939273,2.20527,2108.4,2108.3,49.01512643]
[1625243939623,2.20527,2108.4,2108.3,6.48192643]
[1625243940177,2.20527,2108.4,2108.3,2.78192643]
[1625243940279,2.20527,2108.4,2108.2,7.54062821]
[1625243940830,2.20527,2108.4,2108.3,1.39171573]
[1625243941130,2.20527,2108.4,2108.2,6.15120008]
[1625243941580,5.14957,2108.4,2108.2,6.15120008]
[1625243942181,54.2463,2108.3,2108.2,6.15120008]
[1625243942332,54.2463,2108.3,2108.2,4.759]
[1625243942731,54.2463,2108.3,2108.0,1.39429821]
[1625243942931,54.2463,2108.3,2107.9,1.95201749]
[1625243942932,54.2463,2108.3,2107.8,3.60002375]
[1625243943382,54.2463,2108.3,2107.8,2.20527]
[1625243943831,5.14957,2108.4,2107.8,2.20527]
[1625243944137,4.41054,2107.9,2107.8,2.20527]
[1625243947448,4.41054,2107.9,2107.7,1.39514869]
[1625243947796,4.41054,2107.9,2107.7,0.41764869]
[1625243948249,4.41054,2107.9,2107.6,1.95320817]
[1625243948250,4.41054,2107.9,2107.5,2.74535425]
[1625243948658,4.41054,2107.9,2107.4,1.39559446]
[1625243949173,4.41054,2107.9,2107.2,8.337e-05]
[1625243949419,47.0097,2107.3,2106.9,3.62854559]
[1625243949519,47.0097,2107.3,2106.2,3.62860476]
[1625243949919,47.0097,2107.3,2105.6,4.46677147]
[1625243950122,4.41054,2106.5,2106.0,2.20527]
[1625243950222,48.39724,2106.5,2106.0,2.20527]
[1625243951879,4.41054,2106.5,2106.0,2.20527]
[1625243952227,2.20527,2106.1,2106.0,2.20527]
[1625243952530,2.20527,2106.1,2106.0,6.96427]
[1625243953278,2.20527,2106.1,2106.0,2.20527]
[1625243961118,2.20527,2106.1,2106.0,47.57407]
[1625243961219,2.20527,2106.1,2106.0,2.20527]
[1625243962123,4.91497,2106.1,2106.0,2.20527]
[1625243962271,4.91497,2106.1,2105.5,4.759]
[1625243962476,4.91497,2106.1,2105.0,11.745]
[1625243962675,45.1979,2105.8,2105.0,11.745]
[1625243963126,4.91497,2106.1,2105.0,11.745]
[1625243963628,4.91497,2106.1,2105.2,51.0615]
[1625243963726,2.20527,2106.1,2105.2,53.6509]
[1625243963928,2.20527,2106.5,2105.2,53.6509]
[1625243964128,2.20527,2106.5,2106.1,51.0445]
[1625243966229,2.20527,2106.5,2106.4,2.20527]
[1625243966731,2.20527,2106.6,2106.4,5.55637]
[1625243966732,4e-05,2106.6,2106.4,5.55637]
[1625243966880,1.0,2107.5,2106.4,5.55637]
[1625243966983,16.1881,2108.0,2106.4,5.55637]
[1625243967080,15.1881,2108.0,2106.4,5.55637]
[1625243967631,15.1881,2108.0,2106.9,40.1313]
[1625243967729,15.1881,2108.0,2106.9,42.5536]
[1625243968284,2.20527,2107.7,2107.6,2.20527]
[1625243969637,54.99407,2107.7,2107.4,2.20527]
[1625243970341,2.20527,2107.5,2107.4,2.20527]
[1625243970539,5.90697,2107.5,2107.4,2.20527]
[1625243971041,5.90697,2107.5,2107.1,2.20527]
[1625243972242,2.20527,2107.2,2107.1,2.20527]
[1625243976906,2.20527,2107.2,2106.7,2.20527]
[1625243978354,2.20527,2106.8,2106.7,2.20527]
[1625243978454,44.82957,2106.8,2106.7,2.20527]
[1625243978555,44.82957,2106.8,2106.6,2.20527]
[1625243978903,4.60987,2106.8,2106.6,2.20527]
[1625243980063,4.60987,2106.8,2105.3,1.0]
[1625243980157,4.60987,2106.8,2105.2,4.759]
[1625243980358,2.20527,2105.9,2105.8,2.20527]
[1625243980459,5.80267,2105.9,2105.8,2.20527]
[1625243980562,5.80267,2105.9,2105.8,6.96427]
[1625243981368,3.5974,2105.9,2105.8,6.96427]
[1625243981572,1.0,2106.8,2105.8,6.96427]
[1625243981673,40.2159,2107.0,2105.8,6.96427]
[1625243982326,2.20527,2106.2,2105.8,9.16954]
[1625243983176,2.20527,2106.4,2105.8,9.16954]
[1625243983932,2.20527,2106.4,2105.8,4.759]
[1625243984131,2.20527,2106.4,2105.1,5.759]
[1625243984231,2.20527,2106.4,2105.1,4.759]
[1625243984330,2.20527,2106.1,2105.6,2.20527]
[1625243984583,2.20527,2106.1,2105.6,6.96427]
[1625243985583,1.0,2107.0,2105.6,9.81527]
[1625243985734,1.0,2107.3,2106.0,56.2979]
[1625243985833,16.8336,2107.4,2106.0,56.2979]
[1625243985936,16.8336,2107.4,2105.6,10.81527]
[1625243986389,2.20527,2106.9,2106.8,2.20527]
[1625243986536,42.31227,2106.9,2106.8,2.20527]
[1625243986737,2.20527,2106.9,2106.8,2.20527]
[1625243987087,2.20527,2106.9,2106.6,2.20527]
[1625243988441,2.20527,2106.7,2106.6,2.20527]
[1625243991254,2.20527,2106.7,2106.2,2.20527]
[1625243994424,2.20527,2106.7,2106.5,2.20527]
[1625243995532,2.20527,2106.9,2106.5,5.63477]
[1625243996433,2.20527,2106.9,2106.8,2.20527]
[1625244002095,54.39027,2106.9,2106.5,2.20527]
[1625244002244,57.36967,2106.9,2106.2,4.759]
[1625244002445,4.41054,2106.3,2106.2,4.759]
[1625244002646,6.91184,2106.3,2106.2,4.759]
[1625244003550,6.91184,2106.3,2105.8,2.20527]
[1625244003647,6.91184,2106.3,2105.6,6.96427]
[1625244004510,4.41054,2105.7,2105.6,2.20527]
[1625244004709,8.06234,2105.7,2105.6,2.20527]
[1625244015649,4.41054,2105.7,2105.6,2.20527]
[1625244016100,4.41054,2105.7,2105.6,4.87087]
[1625244017803,1.0,2106.6,2105.6,4.87087]
[1625244017954,52.185,2106.9,2105.6,4.87087]
[1625244018503,2.20527,2106.2,2106.1,2.20527]
[1625244019263,42.42997,2106.2,2106.1,2.20527]
[1625244019611,2.20527,2106.2,2106.1,2.20527]
[1625244020513,4.41054,2106.2,2106.1,2.20527]
[1625244023370,59.30184,2106.2,2106.1,2.20527]
[1625244024635,59.30184,2106.2,2105.1,1.0]
[1625244024786,59.30184,2106.2,2104.5,4.759]
[1625244025136,54.761,2105.1,2104.5,4.759]
[1625244025286,57.9897,2105.1,2104.5,4.759]
[1625244025537,3.2287,2105.1,2104.5,4.759]
[1625244026540,3.2287,2105.1,2105.0,4.41054]
[1625244027344,59.7022,2105.1,2105.0,4.41054]
[1625244028143,3.2287,2105.1,2105.0,4.41054]
[1625244028399,2.20527,2105.2,2105.0,4.41054]
[1625244028648,2.20527,2105.2,2105.0,7.44524]
[1625244032314,2.20527,2105.2,2105.0,4.41054]
[1625244033418,2.20527,2105.2,2105.0,7.27304]
[1625244034069,2.20527,2105.2,2105.0,63.94904]
[1625244034318,2.20527,2105.2,2105.0,7.27304]
[1625244034870,45.3813,2105.9,2105.0,7.27304]
[1625244035571,14.9937,2106.1,2105.0,7.27304]
[1625244035721,14.9937,2106.1,2105.0,12.03204]
[1625244036624,2.20527,2106.3,2106.0,4.41054]
[1625244036725,2.20527,2106.3,2106.0,7.61014]
[1625244038492,2.20527,2106.3,2106.0,4.41054]
[1625244038694,2.20527,2106.1,2105.5,2.20527]
[1625244041297,51.64387,2106.1,2105.5,2.20527]
[1625244041797,2.20527,2106.1,2105.5,2.20527]
[1625244042598,45.09167,2106.1,2105.5,2.20527]
[1625244043653,2.20527,2106.1,2105.5,2.20527]
[1625244044203,2.20527,2106.3,2105.5,2.20527]
[1625244044304,2.20527,2106.3,2105.5,4.74207]
[1625244044756,2.20527,2106.3,2106.2,7.93804]
[1625244045868,2.20527,2106.3,2106.2,3.5275]
[1625244048371,2.20527,2106.3,2105.9,2.20527]
[1625244048777,44.4575,2106.0,2105.9,2.20527]
[1625244050125,2.20527,2106.3,2105.9,2.20527]
[1625244050526,2.20527,2106.3,2105.9,4.62997]
[1625244050726,2.20527,2106.3,2106.2,2.20527]
[1625244054704,2.20527,2106.3,2105.9,4.62997]
[1625244056761,2.20527,2106.3,2106.2,2.20527]
[1625244057912,2.20527,2106.3,2106.2,4.84877]
[1625244063631,2.20527,2106.3,2106.2,2.6435]
[1625244063736,2.20527,2106.3,2105.9,2.20527]
[1625244066854,2.20527,2106.0,2105.9,2.20527]
[1625244067555,2.20527,2106.3,2105.9,2.20527]
[1625244070818,2.20527,2106.3,2105.9,4.56047]
[1625244070920,2.20527,2106.3,2106.2,2.20527]
[1625244071618,2.20527,2106.3,2105.9,2.20527]
[1625244072920,2.20527,2106.3,2105.9,4.41054]
[1625244074977,2.20527,2106.3,2106.2,2.20527]
[1625244077549,2.20527,2106.5,2106.2,2.20527]
[1625244077856,2.20527,2106.5,2105.9,2.20527]
[1625244078055,2.20527,2106.5,2105.5,7.55045478]
[1625244078157,5.0,2106.4,2105.5,7.55045478]
[1625244078255,3.15747,2106.5,2105.5,7.55045478]
[1625244078506,5.0,2106.4,2105.5,4.759]
[1625244078606,5.0,2106.4,2105.4,2.79374745]
[1625244078806,6.1,2106.4,2105.4,2.79374745]
[1625244079009,7.38424,2105.5,2105.4,2.79374745]
[1625244079462,7.38424,2105.5,2104.7,2.20527]
[1625244080317,4.41054,2105.5,2104.7,4.69987]
[1625244080617,4.41054,2105.5,2104.7,9.45887]
[1625244081017,2.20527,2105.5,2105.2,4.87037]
[1625244083025,2.20527,2105.3,2105.2,4.87037]
[1625244083125,2.20527,2105.3,2105.2,2.20527]
[1625244084535,2.20527,2105.3,2104.7,6.96427]
[1625244087041,2.20527,2104.8,2104.7,6.96427]
[1625244087140,5.77307,2104.8,2104.7,6.96427]
[1625244087593,5.67307,2104.8,2104.7,2.20527]
[1625244091016,7.87834,2104.8,2104.7,2.20527]
[1625244092068,58.58314,2104.8,2104.7,2.20527]
[1625244097788,7.87834,2104.8,2104.7,2.20527]
[1625244098288,55.86814,2104.8,2104.7,2.20527]
[1625244098389,7.87834,2104.8,2104.7,2.20527]
[1625244098491,4.31054,2104.8,2104.7,2.20527]
[1625244098589,2.10527,2104.8,2104.7,2.20527]
[1625244098739,3.79382149,2105.7,2104.7,2.20527]
[1625244098844,2.79382149,2105.7,2104.7,2.20527]
[1625244098942,18.24164537,2105.9,2104.7,2.20527]
[1625244099091,2.20527,2104.8,2104.7,2.20527]
[1625244099441,45.71027,2105.0,2104.7,2.20527]
[1625244100241,2.20527,2105.0,2104.7,2.20527]
[1625244101092,4.41054,2105.0,2104.7,2.20527]
[1625244108574,4.41054,2105.0,2104.7,4.54187]
[1625244120720,2.20527,2105.0,2104.7,4.54187]
[1625244123273,2.20527,2105.0,2104.9,2.20527]
[1625244123876,2.20527,2105.3,2104.9,2.20527]
[1625244124478,1.0,2106.2,2104.9,2.20527]
[1625244124574,5.57633115,2106.9,2104.9,3.16797]
[1625244124724,5.57633115,2106.9,2105.0,5.0]
[1625244124988,5.57633115,2106.9,2106.2,50.4508]
[1625244125086,5.57633115,2106.9,2106.2,52.9952]
[1625244125187,6.96459078,2107.2,2106.2,52.9952]
[1625244125188,2.78738164,2107.0,2106.2,52.9952]
[1625244125289,2.78738164,2107.0,2106.2,57.40574]
[1625244125540,1.75738164,2107.0,2106.2,57.40574]
[1625244125645,1.75738164,2107.0,2106.2,62.40574]
[1625244125740,1.43278164,2107.0,2106.2,62.40574]
[1625244125891,0.75608164,2107.0,2106.2,62.40574]
[1625244125991,0.47888164,2107.0,2106.2,62.40574]
[1625244126094,0.47888164,2107.0,2106.3,17.140032]
[1625244126191,0.47888164,2107.0,2106.3,22.140032]
[1625244126345,2.20527,2107.8,2106.3,22.140032]
[1625244126443,3.62301898,2107.9,2106.3,22.140032]
[1625244126793,3.62301898,2107.9,2106.3,17.140032]
[1625244126996,19.26610029,2108.1,2106.3,17.140032]
[1625244126997,14.807,2108.1,2106.3,17.140032]
[1625244127245,14.807,2108.1,2108.0,2.20527]
[1625244127597,2.20527,2108.2,2108.0,2.20527]
[1625244128814,4.15475133,2108.2,2107.0,3.9101]
[1625244128899,4.15475133,2108.2,2107.0,2.9101]
[1625244129302,2.20527,2107.8,2107.6,2.20527]
[1625244129908,45.1563,2107.7,2107.6,2.20527]
[1625244131172,45.1563,2107.7,2107.3,2.20527]
[1625244131273,2.20527,2107.4,2107.3,2.20527]
[1625244131422,4.80827,2107.4,2107.1,2.20527]
[1625244131673,4.80827,2107.4,2106.2,1.0]
[1625244131774,4.80827,2107.4,2105.3,15.8189]
[1625244131976,9.80827,2107.4,2105.3,15.8189]
[1625244132176,9.80827,2107.4,2105.1,6.70133256]
[1625244132277,10.80827,2107.4,2105.1,6.70133256]
[1625244132379,10.80827,2107.4,2105.2,1.0]
[1625244132477,1.9492527,2107.2,2105.2,1.0]
[1625244132577,1.9492527,2107.2,2105.1,4.759]
[1625244132878,52.2304,2106.2,2105.1,4.759]
[1625244132978,54.6691,2106.2,2105.1,4.759]
[1625244133330,2.20527,2105.5,2105.4,2.20527]
[1625244133479,4.89117,2105.5,2105.4,2.20527]
[1625244135280,7.09644,2105.5,2105.4,2.20527]
[1625244135934,52.97394,2105.5,2105.4,2.20527]
[1625244136084,7.09644,2105.5,2105.4,2.20527]
[1625244136989,7.09644,2105.5,2105.2,2.20527]
[1625244137085,43.1047,2105.3,2105.2,2.20527]
[1625244137435,7.09644,2105.5,2105.2,2.20527]
[1625244137635,7.09644,2105.5,2104.8,2.20527]
[1625244139039,46.9175,2105.4,2104.8,2.20527]
[1625244139291,4.41054,2104.9,2104.8,2.20527]
[1625244139944,53.2304,2106.2,2104.8,2.20527]
[1625244140093,52.2304,2106.2,2104.8,5.19347]
[1625244141345,2.20527,2105.3,2105.1,2.20527]
[1625244141645,2.20527,2105.5,2105.1,2.20527]
[1625244142446,1.0,2106.4,2105.1,2.20527]
[1625244142548,55.2091,2106.7,2105.1,2.20527]
[1625244143049,14.8791,2106.9,2105.1,2.20527]
[1625244143347,2.20527,2105.9,2105.6,2.20527]
[1625244143449,2.20527,2105.9,2105.6,4.51737]
[1625244144051,2.20527,2106.1,2105.6,4.51737]
[1625244145361,2.20527,2105.8,2105.6,4.51737]
[1625244146969,2.20527,2105.8,2105.6,2.20527]
[1625244147424,2.20527,2105.7,2105.6,2.20527]
[1625244148023,2.20527,2105.7,2104.6,5.759]
[1625244148123,2.20527,2105.7,2104.6,4.759]
[1625244149374,2.20527,2104.8,2104.7,2.20527]
[1625244151378,4.41054,2104.8,2104.7,2.20527]
[1625244152177,1.0,2105.9,2104.7,2.20527]
[1625244152330,1.0,2106.4,2104.7,4.76607]
[1625244152428,1.95137726,2106.5,2104.7,4.76607]
[1625244152730,5.55983373,2107.0,2104.7,4.76607]
[1625244152731,1.95141737,2106.7,2104.7,4.76607]
[1625244152877,1.95141737,2106.7,2104.8,17.313116]
[1625244152978,1.95129461,2106.8,2104.8,17.313116]
[1625244153379,2.20527,2106.3,2106.0,2.20527]
[1625244153480,2.20527,2106.3,2106.0,5.44347]
[1625244155386,2.20527,2106.2,2106.0,5.44347]
[1625244157744,64.6975,2106.9,2106.0,5.44347]
[1625244158492,1.95173575,2106.8,2106.0,5.44347]
[1625244158947,1.95173575,2106.8,2106.0,2.20527]
[1625244159243,1.95189584,2106.7,2106.0,2.20527]
[1625244159444,4.41054,2106.1,2106.0,2.20527]
[1625244159694,51.92274,2106.1,2106.0,2.20527]
[1625244160148,51.92274,2106.1,2104.9,5.759]
[1625244160247,51.92274,2106.1,2104.9,4.759]
[1625244160495,53.02274,2106.1,2104.9,4.759]
[1625244160746,51.92274,2106.1,2104.9,4.759]
[1625244160846,4.41054,2106.1,2104.9,4.759]
[1625244161397,4.41054,2106.1,2104.2,2.90649873]
[1625244161550,4.41054,2106.1,533.0,5.0]
[1625244161551,67.0544,2106.0,2103.8,1.43418368]
[1625244161800,1.1,2105.9,2103.8,1.43418368]
[1625244161901,1.1,2105.9,2102.8,1.95376522]
[1625244161902,1.95366116,2104.9,2102.8,1.95376522]
[1625244162000,10.1,2104.8,2102.8,1.95376522]
[1625244162100,5.0,2104.7,2102.8,1.95376522]
[1625244162204,10.1,2104.6,2102.8,1.95376522]
[1625244162300,5.0,2104.5,2102.8,1.95376522]
[1625244162402,10.1,2104.4,2102.8,1.90766522]
[1625244162506,5.0,2104.3,2102.4,3.62842112]
[1625244162605,1.95052106,2104.1,2101.9,1.95452077]
[1625244162752,2.1,2104.0,2101.9,1.95452077]
[1625244162851,5.0,2103.9,2101.9,1.95452077]
[1625244162950,10.1,2103.8,2101.6,38.26539681]
[1625244163103,5.0,2103.7,2101.6,38.26539681]
[1625244163251,2.1,2103.6,2101.6,38.26539681]
[1625244163400,5.0,2103.5,2101.6,38.26539681]
[1625244163550,4.41054,2101.7,2101.6,38.26539681]
[1625244163653,9.13004,2101.7,2101.6,38.26539681]
[1625244163903,9.13004,2101.7,2101.6,35.1913]
[1625244164013,4.7195,2101.7,2101.6,35.1913]
[1625244164103,3.7195,2101.7,2101.6,35.1913]
[1625244164608,0.0001,2101.7,2101.6,35.1913]
[1625244164705,5.54514209,2103.5,2101.6,85.9729]
[1625244164852,5.0,2103.4,2101.6,85.9729]
[1625244165056,5.0,2103.4,2101.6,35.1913]
[1625244165155,1.0,2103.3,2101.6,35.1913]
[1625244165539,2.20527,2101.9,2101.6,35.1913]
[1625244165794,1.0,2101.8,2101.6,35.1913]
[1625244165854,2.20527,2101.9,2101.6,35.1913]
[1625244166005,2.20527,2102.1,2101.6,35.1913]
[1625244167308,1.0,2102.0,2101.6,35.1913]
[1625244167508,1.0,2102.0,2101.9,4.41054]
[1625244167709,60.689,2102.0,2101.9,4.41054]
[1625244167821,59.689,2102.0,2101.9,4.41054]
[1625244168259,59.689,2102.0,2101.6,35.1913]
[1625244168360,60.689,2102.0,2101.6,35.1913]
[1625244168460,63.0165,2102.0,2101.6,35.1913]
[1625244168668,62.0165,2102.0,2101.6,35.1913]
[1625244169118,5.0,2101.9,2101.6,34.0295]
[1625244169271,5.0,2101.9,2101.6,29.1632]
[1625244169369,1.0,2101.8,2101.6,29.1632]
[1625244169469,2.20527,2101.7,2101.6,29.1632]
[1625244169619,3.20527,2101.7,2101.6,29.1632]
[1625244171133,1.0,2101.7,2101.6,29.1632]
[1625244171488,1.0,2101.7,2101.6,33.57374]
[1625244171837,0.0001,2101.7,2101.6,33.57374]